bitfinex-derivatives/quotes_SOLF0:USTF0_20240829
["timestamp","ask_amount","ask_price","bid_price","bid_amount"]
[1724892497846,0.04570097,144.36,144.33,30.0833]
[1724892502144,3.50850097,144.36,144.32,6.0468]
[1724892502345,0.04570097,144.36,144.31,0.04869365]
[1724892502540,0.04570097,144.36,144.31,4.70869365]
[1724892502744,3.4631,144.35,144.31,8.17249365]
[1724892503148,0.04570097,144.36,144.31,4.70869365]
[1724892503348,0.04570097,144.36,144.31,0.04869365]
[1724892503747,3.4636,144.32,144.31,0.04869365]
[1724892504250,6.97335457,144.32,144.31,0.04869365]
[1724892504454,3.50975457,144.32,144.23,1.3387]
[1724892504748,26.62,144.31,144.24,4.66]
[1724892505053,3.54090732,144.32,144.24,4.66]
[1724892505242,26.62,144.33,144.24,4.66]
[1724892505443,26.62,144.33,144.27,0.04445857]
[1724892505444,3.51337322,144.3,144.27,0.04445857]
[1724892505648,7.05705229,144.3,144.27,0.04445857]
[1724892505848,3.51337322,144.3,144.27,0.04445857]
[1724892506254,3.4645,144.29,144.27,0.04445857]
[1724892506451,3.47366715,144.3,144.27,0.04445857]
[1724892506654,0.04917322,144.3,144.27,0.04445857]
[1724892507351,3.51337322,144.3,144.27,0.04445857]
[1724892508947,0.04917322,144.3,144.27,0.04445857]
[1724892510752,3.51327322,144.3,144.27,0.04445857]
[1724892518160,0.04917322,144.3,144.28,3.4645]
[1724892519266,0.04917322,144.3,144.29,14.1043]
[1724892519574,0.04917322,144.3,144.29,18.7643]
[1724892523376,347.5268,144.4,144.29,15.3]
[1724892523567,10.64,144.39,144.33,10.64]
[1724892524375,0.05023686,144.37,144.35,0.05006521]
[1724892524969,3.4628,144.36,144.35,0.05006521]
[1724892525370,14.1028,144.36,144.35,0.05006521]
[1724892525574,10.64,144.36,144.29,4.66]
[1724892525776,10.64,144.34,144.28,4.66]
[1724892526270,14.10947779,144.33,144.28,4.66]
[1724892526472,0.04671588,144.32,144.29,0.04378689]
[1724892527376,3.464,144.31,144.29,0.04378689]
[1724892529479,3.4641,144.3,144.29,0.04378689]
[1724892541285,14.1041,144.3,144.29,0.04378689]
[1724892543184,3.4641,144.3,144.29,0.04378689]
[1724892543490,2.69911588,144.32,144.29,0.04378689]
[1724892543986,3.464,144.31,144.29,0.04378689]
[1724892544683,0.04671588,144.32,144.29,0.04378689]
[1724892545282,3.51041588,144.32,144.29,0.04378689]
[1724892546783,3.4639,144.31,144.29,0.04378689]
[1724892546987,10.68671588,144.32,144.29,0.04378689]
[1724892547177,10.64,144.31,144.29,0.04378689]
[1724892547382,3.4641,144.3,144.29,0.04378689]
[1724892551189,14.1041,144.3,144.29,0.04378689]
[1724892553585,3.464,144.31,144.29,0.04378689]
[1724892557496,3.51041588,144.32,144.29,0.04378689]
[1724892558990,0.04671588,144.32,144.29,0.04378689]
[1724892559391,0.04671588,144.32,144.29,10.68378689]
[1724892560299,0.04671588,144.32,144.3,3.4641]
[1724892561197,0.04671588,144.32,144.29,0.04378689]
[1724892561999,3.51031588,144.32,144.29,0.04378689]
[1724892563301,3.51031588,144.32,144.29,3.50808689]
[1724892567998,0.04671588,144.32,144.29,0.04378689]
[1724892568196,10.64,144.31,144.29,0.04378689]
[1724892568598,3.4641,144.3,144.29,0.04378689]
[1724892569697,3.4639,144.31,144.29,0.04378689]
[1724892570198,3.4641,144.3,144.29,0.04378689]
[1724892570394,14.1041,144.3,144.29,0.04378689]
[1724892572202,14.1041,144.3,144.24,18.7654]
[1724892572203,3.4647,144.28,144.21,2.6212]
[1724892572405,14.1047,144.28,144.23,4.66]
[1724892572598,14.1047,144.28,144.23,8.1256]
[1724892572904,14.1047,144.28,144.24,2.21808742]
[1724892573204,0.04884471,144.27,144.25,0.05065033]
[1724892577602,3.51374471,144.27,144.25,0.05065033]
[1724892578302,0.04884471,144.27,144.25,0.05065033]
[1724892580810,3.51364471,144.27,144.25,0.05065033]
[1724892584427,14.105,144.26,144.25,0.05065033]
[1724892584713,339.0,144.25,144.07,27.72]
[1724892584910,10.64,144.26,144.11,2.591]
[1724892584911,10.64,144.17,144.11,2.591]
[1724892585111,14.07051299,144.17,144.12,2.21885779]
[1724892585307,14.07051299,144.17,144.11,4.80985779]
[1724892585507,14.07051299,144.17,144.11,2.21885779]
[1724892585508,10.64,144.15,144.11,2.21885779]
[1724892585712,0.05269949,144.14,144.12,0.05238366]
[1724892587016,0.05269949,144.14,144.12,10.69238366]
[1724892587515,0.05269949,144.14,144.13,14.1082]
[1724892587713,0.05269949,144.14,144.13,18.7682]
[1724892588116,3.4668,144.19,144.14,3.4679]
[1724892589107,30.12469631,144.22,144.15,0.0454412]
[1724892589108,0.04557869,144.18,144.15,0.0454412]
[1724892596714,0.04557869,144.18,144.15,3.5129412]
[1724892598022,0.04557869,144.18,144.15,0.0454412]
[1724892598814,0.04557869,144.18,144.15,3.5130412]
[1724892599015,0.04557869,144.18,144.15,0.0454412]
[1724892599425,0.04557869,144.18,144.16,3.4674]
[1724892600226,0.04557869,144.18,144.15,3.5130412]
[1724892600615,0.04557869,144.18,144.15,0.0454412]
[1724892602019,0.04557869,144.18,144.15,3.5130412]
[1724892605332,0.04557869,144.18,144.15,0.0454412]
[1724892605826,0.04557869,144.18,144.16,3.4673]
[1724892606023,0.04557869,144.18,144.15,0.0454412]
[1724892606422,3.51277869,144.18,144.15,0.0454412]
[1724892606617,0.04557869,144.18,144.15,0.0454412]
[1724892606820,3.4675,144.16,144.15,0.0454412]
[1724892608028,14.1275,144.16,144.15,0.0454412]
[1724892608817,3.4674,144.17,144.15,0.0454412]
[1724892609025,14.1274,144.17,144.15,0.0454412]
[1724892610126,0.04557869,144.18,144.15,0.0454412]
[1724892610426,3.4675,144.16,144.15,0.0454412]
[1724892612627,30.1075,144.16,144.15,0.0454412]
[1724892614031,26.68557869,144.18,144.15,0.0454412]
[1724892614525,30.15277869,144.18,144.15,0.0454412]
[1724892614927,3.51277869,144.18,144.15,0.0454412]
[1724892618637,0.04557869,144.18,144.15,3.5130412]
[1724892618929,0.04557869,144.18,144.15,0.0454412]
[1724892620839,3.51257869,144.18,144.15,0.0454412]
[1724892621241,0.04557869,144.18,144.15,0.0454412]
[1724892623437,0.04557869,144.18,144.15,3.5130412]
[1724892632847,2.7006,144.25,144.17,10.66]
[1724892633039,10.66,144.26,144.19,10.66]
[1724892633339,1.2686,144.29,144.22,3.466]
[1724892633340,10.66,144.28,144.22,3.466]
[1724892633651,10.66,144.28,144.22,14.126]
[1724892633953,14.1739629,144.26,144.24,0.05313918]
[1724892639549,0.0488629,144.26,144.24,0.05313918]
[1724892642251,10.66,144.25,144.24,0.05313918]
[1724892642758,3.4653,144.25,144.24,0.05313918]
[1724892644359,14.1739629,144.26,144.24,0.05313918]
[1724892648258,14.1253,144.25,144.24,0.05313918]
[1724892648559,14.1253,144.25,144.18,4.64]
[1724892648560,10.66,144.25,144.18,4.64]
[1724892648749,14.1261,144.22,144.18,4.64]
[1724892648952,14.1261,144.22,144.17,8.107]
[1724892649353,14.1261,144.22,144.18,0.05278906]
[1724892649552,0.04569957,144.21,144.18,0.05278906]
[1724892650958,0.04569957,144.21,144.18,3.51968906]
[1724892653959,0.04569957,144.21,144.19,10.66]
[1724892654362,3.51209957,144.21,144.18,0.05278906]
[1724892654551,3.51209957,144.21,144.19,4.64]
[1724892655359,3.51209957,144.21,144.18,0.05278906]
[1724892658363,0.04569957,144.21,144.18,3.51968906]
[1724892658670,0.04569957,144.21,144.18,0.05278906]
[1724892659059,3.4667,144.2,144.18,0.05278906]
[1724892659463,10.66,144.2,144.18,0.05278906]
[1724892659669,3.4667,144.19,144.18,0.05278906]
[1724892660669,3.4666,144.2,144.18,0.05278906]
[1724892661870,3.51199957,144.21,144.18,0.05278906]
[1724892662263,0.04569957,144.21,144.18,0.05278906]
[1724892663267,3.4666,144.2,144.18,0.05278906]
[1724892665475,3.4667,144.19,144.18,0.05278906]
[1724892669380,0.04569957,144.21,144.18,0.05278906]
[1724892669979,3.4666,144.2,144.18,0.05278906]
[1724892671972,3.4667,144.19,144.18,0.05278906]
[1724892672780,14.1267,144.19,144.18,0.05278906]
[1724892673585,10.66,144.19,144.12,3.4683]
[1724892673777,10.66,144.19,144.08,3.47055496]
[1724892673778,10.66,144.18,144.08,3.47055496]
[1724892673977,10.66,144.18,144.11,4.64]
[1724892674174,10.66,144.18,144.11,8.1085]
[1724892674175,3.4677,144.16,144.11,8.1085]
[1724892674480,3.4677,144.16,144.11,15.3]
[1724892674673,0.04911418,144.15,144.12,0.05160861]
[1724892675981,3.4679,144.14,144.12,0.05160861]
[1724892676480,0.04911418,144.15,144.12,0.05160861]
[1724892676884,3.4679,144.14,144.12,0.05160861]
[1724892680790,3.51681418,144.15,144.12,0.05160861]
[1724892681087,0.04911418,144.15,144.12,0.05160861]
[1724892682889,3.51691418,144.15,144.12,0.05160861]
[1724892685089,0.04911418,144.15,144.12,0.05160861]
[1724892686278,3.51691418,144.15,144.12,0.05160861]
[1724892687993,3.468,144.14,144.12,0.05160861]
[1724892692490,0.04911418,144.15,144.13,10.66]
[1724892692887,0.04911418,144.15,144.14,10.66]
[1724892693089,0.04911418,144.15,144.14,14.1279]
[1724892693491,0.04911418,144.15,144.14,10.66]
[1724892693693,0.04911418,144.15,144.13,10.66]
[1724892695403,0.04911418,144.15,144.14,10.66]
[1724892695897,0.04911418,144.15,144.14,18.7679]
[1724892696096,14.16314517,144.22,144.14,15.3]
[1724892696097,3.50314517,144.22,144.14,15.3]
[1724892696294,3.50314517,144.22,144.17,10.66]
[1724892696597,3.4664,144.21,144.17,10.66]
[1724892696992,0.04725297,144.2,144.18,0.0530725]
[1724892698295,10.66,144.19,144.18,0.0530725]
[1724892698502,0.04725297,144.2,144.18,0.0530725]
[1724892698695,3.4667,144.19,144.18,0.0530725]
[1724892699197,14.1267,144.19,144.18,0.0530725]
[1724892702493,0.04725297,144.2,144.18,10.7130725]
[1724892702700,0.04725297,144.2,144.19,10.66]
[1724892704695,0.04725297,144.2,144.19,14.1267]
[1724892706009,0.04725297,144.2,144.19,10.66]
[1724892709917,0.04725297,144.2,144.19,14.1267]
[1724892710408,0.04725297,144.2,144.19,10.66]
[1724892713519,0.04725297,144.2,144.19,14.1267]
[1724892715315,340.2544,144.27,144.19,14.1267]
[1724892715316,339.0,144.27,144.21,3.4661]
[1724892715517,10.66,144.29,144.23,10.66]
[1724892715921,3.44650024,144.27,144.23,10.66]
[1724892716216,10.66,144.26,144.2,3.4664]
[1724892716416,4.64,144.3,144.22,0.0469971]
[1724892716417,0.05030829,144.24,144.22,0.0469971]
[1724892717512,0.05030829,144.24,144.22,10.7069971]
[1724892718123,0.05030829,144.24,144.22,14.1728971]
[1724892718313,0.05030829,144.24,144.23,10.66]
[1724892718618,0.05030829,144.24,144.23,14.1258]
[1724892719216,0.05030829,144.24,144.23,18.7658]
[1724892720417,0.05030829,144.24,144.22,0.0469971]
[1724892720820,3.51590829,144.24,144.22,0.0469971]
[1724892721015,0.05030829,144.24,144.22,0.0469971]
[1724892722824,3.51600829,144.24,144.22,0.0469971]
[1724892723019,0.05030829,144.24,144.22,0.0469971]
[1724892723221,10.71030829,144.24,144.22,0.0469971]
[1724892723419,3.4658,144.23,144.22,0.0469971]
[1724892724014,3.51590829,144.24,144.22,0.0469971]
[1724892724214,0.05030829,144.24,144.22,10.7069971]
[1724892725127,0.05030829,144.24,144.22,14.1728971]
[1724892728513,0.05030829,144.24,144.22,0.0469971]
[1724892729412,3.51600829,144.24,144.22,0.0469971]
[1724892730721,3.4658,144.23,144.22,0.0469971]
[1724892734929,0.05030829,144.24,144.22,0.0469971]
[1724892735937,0.05030829,144.24,144.22,10.7069971]
[1724892736136,0.05030829,144.24,144.23,10.66]
[1724892736331,0.05030829,144.24,144.23,18.7658]
[1724892737241,229.9232,144.41,144.26,3.465]
[1724892737430,1.27403575,144.32,144.27,10.66]
[1724892737636,11.93403575,144.31,144.25,10.66]
[1724892737838,10.66,144.31,144.24,14.1254]
[1724892738443,3.51029776,144.29,144.26,0.04461008]
[1724892739547,10.66,144.28,144.26,0.04461008]
[1724892740946,3.4648,144.27,144.26,0.04461008]
[1724892743045,0.04579776,144.29,144.26,0.04461008]
[1724892743649,3.4648,144.27,144.26,0.04461008]
[1724892745952,3.4657,144.24,144.21,10.66]
[1724892746146,3.46287242,144.26,144.2,4.64]
[1724892746848,10.66,144.25,144.2,4.64]
[1724892747153,3.4659,144.23,144.21,0.05108673]
[1724892747456,3.4659,144.23,144.21,10.71108673]
[1724892748654,3.4659,144.23,144.21,0.05108673]
[1724892749755,3.51204862,144.24,144.21,0.05108673]
[1724892751650,3.51204862,144.24,144.21,10.71108673]
[1724892752854,0.04644862,144.24,144.22,10.66]
[1724892754561,0.04644862,144.24,144.23,10.66]
[1724892756759,0.04644862,144.24,144.21,14.17728673]
[1724892757162,0.04644862,144.24,144.22,10.66]
[1724892757964,0.04644862,144.24,144.21,30.12728673]
[1724892762266,3.51224862,144.24,144.21,0.05108673]
[1724892762466,0.04644862,144.24,144.21,0.05108673]
[1724892763678,3.4658,144.23,144.21,0.05108673]
[1724892764168,3.466,144.22,144.21,0.05108673]
[1724892764971,0.04644862,144.24,144.21,0.05108673]
[1724892765863,0.04644862,144.24,144.21,26.66108673]
[1724892766870,0.04644862,144.24,144.22,26.61]
[1724892767372,0.04644862,144.24,144.22,31.3478]
[1724892768072,0.04644862,144.24,144.22,4.7378]
[1724892768668,0.04644862,144.24,144.22,3.4659]
[1724892769265,3.51204862,144.24,144.21,0.05108673]
[1724892770572,0.04644862,144.24,144.21,0.05108673]
[1724892771177,3.4658,144.23,144.21,0.05108673]
[1724892771970,3.466,144.22,144.21,0.05108673]
[1724892778976,0.04644862,144.24,144.21,10.70108673]
[1724892779178,0.04644862,144.24,144.23,10.65]
[1724892779470,0.04644862,144.24,144.21,0.05108673]
[1724892780174,3.4659,144.23,144.21,0.05108673]
[1724892781476,3.51214862,144.24,144.21,0.05108673]
[1724892781670,3.51214862,144.24,144.21,10.70108673]
[1724892785972,0.04644862,144.24,144.21,10.70108673]
[1724892786183,0.04644862,144.24,144.23,10.65]
[1724892787582,0.04644862,144.24,144.23,14.1158]
[1724892788184,3.4646,144.28,144.23,14.1158]
[1724892788185,3.4644,144.29,144.24,3.4654]
[1724892788474,3.4644,144.29,144.27,10.65]
[1724892788668,3.4644,144.29,144.25,10.65]
[1724892789283,0.04668043,144.28,144.26,0.0468444]
[1724892794385,0.04668043,144.28,144.26,14.1617444]
[1724892794586,0.04668043,144.28,144.26,10.6968444]
[1724892806407,0.04668043,144.28,144.26,14.1618444]
[1724892820707,3.4648,144.27,144.26,0.0468444]
[1724892824710,14.1148,144.27,144.26,0.0468444]
[1724892825725,3.4653,144.25,144.21,15.27]
[1724892826621,0.04439318,144.24,144.22,0.04381966]
[1724892827226,0.04439318,144.24,144.22,10.69381966]
[1724892828525,0.04439318,144.24,144.22,14.15971966]
[1724892832833,3.50999318,144.24,144.22,0.04381966]
[1724892835633,3.4658,144.23,144.22,0.04381966]
[1724892844844,6.87728207,144.23,144.22,0.04381966]
[1724892847942,17.52728207,144.23,144.22,0.04381966]
[1724892851246,3.4667,144.2,144.15,11.8984]
[1724892851449,3.4667,144.2,144.15,16.5184]
[1724892851752,3.4667,144.2,144.15,19.986]
[1724892852344,0.04513048,144.19,144.16,0.04999185]
[1724892853552,10.65,144.18,144.16,0.04999185]
[1724892853755,3.4672,144.17,144.16,0.04999185]
[1724892854342,14.1172,144.17,144.16,0.04999185]
[1724892857348,3.4672,144.17,144.16,0.04999185]
[1724892859450,3.4671,144.18,144.16,0.04999185]
[1724892865355,3.4672,144.17,144.16,0.04999185]
[1724892869863,3.4671,144.18,144.16,0.04999185]
[1724892870065,0.04513048,144.19,144.16,0.04999185]
[1724892871467,3.467,144.18,144.16,0.04999185]
[1724892877063,0.04513048,144.19,144.16,0.04999185]
[1724892877266,0.04513048,144.19,144.17,10.65]
[1724892877962,0.04513048,144.19,144.16,0.04999185]
[1724892879278,3.51193048,144.19,144.16,0.04999185]
[1724892882067,3.467,144.18,144.16,0.04999185]
[1724892884175,3.467,144.18,144.16,3.51739185]
[1724892884672,3.4672,144.17,144.16,0.04999185]
[1724892886872,14.1172,144.17,144.16,0.04999185]
[1724892888975,3.4683,144.13,144.08,18.0032]
[1724892889167,3.4683,144.13,144.09,6.82011274]
[1724892889973,0.05040629,144.12,144.1,0.05072764]
[1724892891980,3.51890629,144.12,144.1,0.05072764]
[1724892895781,3.51890629,144.12,144.1,10.70072764]
[1724892898479,3.51890629,144.12,144.1,0.05072764]
[1724892902185,3.4687,144.11,144.1,0.05072764]
[1724892904690,14.1187,144.11,144.1,0.05072764]
[1724892905295,10.65,144.11,144.02,4.6]
[1724892905494,10.65,144.07,144.02,2.22104071]
[1724892905695,10.65,144.07,144.01,15.25]
[1724892906088,0.04508219,144.05,144.03,0.05221551]
[1724892906593,10.65,144.04,144.03,0.05221551]
[1724892907193,10.65,144.04,143.98,2.22184828]
[1724892907491,10.65,144.04,143.96,15.25]
[1724892907693,10.65,144.04,143.97,3.472]
[1724892908298,0.05131445,144.02,143.99,0.04480217]
[1724892908795,3.52221445,144.02,143.99,0.04480217]
[1724892909202,0.05131445,144.02,143.99,0.04480217]
[1724892910300,3.4711,144.01,143.99,0.04480217]
[1724892911698,3.4713,144.0,143.99,0.04480217]
[1724892912601,0.05131445,144.02,143.99,0.04480217]
[1724892913097,3.4713,144.0,143.99,0.04480217]
[1724892913999,3.4712,144.01,143.99,0.04480217]
[1724892914198,0.05131445,144.02,143.99,0.04480217]
[1724892914398,3.4711,144.01,143.99,0.04480217]
[1724892914899,0.05131445,144.02,143.99,0.04480217]
[1724892915101,14.1213,144.0,143.99,0.04480217]
[1724892916398,14.1213,144.0,143.93,7.3145]
[1724892916399,3.4723,143.97,143.93,1.2963]
[1724892916599,10.65,143.98,143.93,1.2963]
[1724892916801,14.06344888,143.99,143.93,1.2963]
[1724892917001,3.472,143.97,143.93,1.2963]
[1724892917201,3.472,143.97,143.93,11.9463]
[1724892917502,0.04836978,143.96,143.94,0.04867866]
[1724892918108,0.04836978,143.96,143.95,3.4725]
[1724892918297,0.04836978,143.96,143.95,10.65]
[1724892919304,0.04836978,143.96,143.95,14.1225]
[1724892920704,5.9548,144.05,143.95,14.1225]
[1724892920705,1.3548,144.05,143.95,10.65]
[1724892920895,14.13513853,144.07,144.01,10.65]
[1724892921098,10.65,144.07,144.01,10.65]
[1724892921803,3.51401517,144.05,144.03,0.04740226]
[1724892922607,14.1203,144.04,144.03,0.04740226]
[1724892923309,10.65,144.04,144.03,0.04740226]
[1724892924712,3.51401517,144.05,144.03,0.04740226]
[1724892924713,0.04381517,144.05,144.03,0.04740226]
[1724892925208,0.04381517,144.05,144.03,3.51790226]
[1724892925602,0.04381517,144.05,144.03,0.04740226]
[1724892928709,0.04381517,144.05,144.04,10.65]
[1724892929711,0.04381517,144.05,144.04,14.1203]
[1724892931505,3.4693,144.09,144.06,3.4698]
[1724892931817,3.469,144.1,144.06,10.65]
[1724892932317,3.469,144.1,144.07,3.4696]
[1724892932510,3.51828893,144.1,144.07,3.51771082]
[1724892933414,0.04928893,144.1,144.09,10.65]
[1724892934217,3.51414743,144.17,144.09,10.65]
[1724892934521,3.4676,144.16,144.12,10.65]
[1724892935212,0.04913227,144.15,144.13,0.0525912]
[1724892938624,0.04913227,144.15,144.13,3.5206912]
[1724892939718,0.04913227,144.15,144.13,0.0525912]
[1724892941231,26.65,144.14,144.04,26.65]
[1724892941416,26.65,144.14,144.04,27.9549]
[1724892941617,3.4689,144.1,144.05,3.4699]
[1724892941920,26.65,144.14,144.04,27.9549]
[1724892942222,0.04859912,144.1,144.08,0.0443469]
[1724892943620,3.4691,144.09,144.08,0.0443469]
[1724892947229,3.51759912,144.1,144.08,0.0443469]
[1724892949628,0.04859912,144.1,144.08,0.0443469]
[1724892951526,0.04859912,144.1,144.08,3.5137469]
[1724892951830,343.6,144.19,144.09,26.65]
[1724892952031,4.83862993,144.18,144.11,30.1185]
[1724892952335,3.4676,144.16,144.11,30.1185]
[1724892952529,27.9945,144.18,144.1,3.4688]
[1724892952736,27.9945,144.18,144.09,1.2631]
[1724892952930,3.4683,144.13,144.12,0.04898675]
[1724892953428,3.4691,144.09,144.06,4.6]
[1724892954229,26.65,144.12,144.06,4.6]
[1724892954437,0.04408332,144.1,144.08,0.05129072]
[1724892954830,3.4693,144.09,144.08,0.05129072]
[1724892957836,3.51308332,144.1,144.08,0.05129072]
[1724892958233,3.4691,144.09,144.08,0.05129072]
[1724892959427,3.4691,144.09,144.04,3.4703]
[1724892959428,30.21854316,144.1,143.92,27.74]
[1724892959637,30.21854316,144.1,144.0,5.8652]
[1724892959638,26.65,144.07,144.0,5.8652]
[1724892960030,3.4703,144.05,144.0,5.8652]
[1724892960529,0.05155382,144.04,144.03,3.4704]
[1724892960733,0.04769956,144.05,144.02,0.05163115]
[1724892960933,0.05034595,144.05,144.02,3.51617981]
[1724892962733,0.05034595,144.05,144.02,0.04537981]
[1724892963139,3.4703,144.04,144.02,0.04537981]
[1724892963745,0.05034595,144.05,144.02,0.04537981]
[1724892964446,3.4706,144.03,144.02,0.04537981]
[1724892966540,27.9891,144.06,143.97,8.0719]
[1724892966541,3.4711,144.01,143.97,8.0719]
[1724892967638,0.04485186,144.0,143.98,0.0465918]
[1724892967834,3.4715,143.99,143.98,0.0465918]
[1724892970644,3.4721,143.97,143.93,3.473]
[1724892971243,3.4721,143.97,143.94,3.4727]
[1724892971545,30.05904642,144.0,143.94,3.4727]
[1724892971749,0.05081375,143.98,143.96,0.04588661]
[1724892973350,0.05081375,143.98,143.96,3.51808661]
[1724892974344,0.05081375,143.98,143.97,3.472]
[1724892975041,0.05081375,143.98,143.97,4.7696]
[1724892975245,26.65,144.09,143.97,2.6349]
[1724892975545,26.65,144.09,143.99,26.65]
[1724892976250,0.05073361,144.05,144.03,0.04788131]
[1724892978845,0.05073361,144.05,144.03,3.51848131]
[1724892979148,0.05073361,144.05,144.03,0.04788131]
[1724892979349,0.05073361,144.05,144.04,3.4703]
[1724892979549,0.05073361,144.05,144.03,0.04788131]
[1724892980837,3.4703,144.04,144.03,0.04788131]
[1724892982844,26.70073361,144.05,143.98,3.4717]
[1724892982845,3.4708,144.03,143.98,3.4717]
[1724892983859,0.04535935,144.02,143.99,0.04872531]
[1724892984854,0.04535935,144.02,144.01,3.4711]
[1724892986047,2.5625,144.1,144.04,3.4702]
[1724892986550,1.296,144.12,144.06,3.4698]
[1724892986854,5.896,144.12,144.06,3.4698]
[1724892987049,5.896,144.12,144.08,0.04938653]
[1724892987050,0.04427323,144.1,144.08,0.04938653]
[1724892987552,26.65,144.09,144.08,0.04938653]
[1724892987754,30.1191,144.09,144.08,0.04938653]
[1724892987955,3.4691,144.09,144.08,0.04938653]
[1724892990254,26.69427323,144.1,144.03,3.4703]
[1724892990451,26.69427323,144.1,144.02,3.4707]
[1724892990650,31.25,144.1,144.02,3.4707]
[1724892991149,3.4697,144.07,144.02,3.4707]
[1724892991348,0.04859847,144.06,144.03,0.05042049]
[1724892992055,3.51859847,144.06,144.03,0.05042049]
[1724892992758,0.04859847,144.06,144.03,0.05042049]
[1724892993357,3.51849847,144.06,144.03,0.05042049]
[1724892993859,0.04859847,144.06,144.03,0.05042049]
[1724892995750,0.04859847,144.06,144.05,30.1201]
[1724892995954,339.0,144.12,144.05,26.65]
[1724892996156,1.3391,144.14,144.07,26.65]
[1724892996362,3.45558435,144.15,144.07,26.65]
[1724892996657,4.64,144.16,144.07,26.65]
[1724892997065,0.05138057,144.13,144.1,0.05075895]
[1724892997460,3.51968057,144.13,144.1,0.05075895]
[1724892997866,3.4684,144.12,144.1,0.05075895]
[1724892998361,26.70138057,144.13,144.1,0.05075895]
[1724892998558,3.4687,144.11,144.1,0.05075895]
[1724892998758,30.1187,144.11,144.1,0.05075895]
[1724893002072,3.4687,144.11,144.1,0.05075895]
[1724893008368,3.4685,144.12,144.1,0.05075895]
[1724893009569,26.70138057,144.13,144.1,0.05075895]
[1724893009570,3.4687,144.11,144.1,0.05075895]
[1724893020178,3.4686,144.12,144.1,0.05075895]
[1724893020379,0.05138057,144.13,144.1,0.05075895]
[1724893020576,26.70138057,144.13,144.1,0.05075895]
[1724893021382,3.4687,144.11,144.1,0.05075895]
[1724893026778,30.1187,144.11,144.1,0.05075895]
[1724893027086,26.65,144.11,144.01,8.0709]
[1724893027287,26.65,144.08,144.01,8.0709]
[1724893027580,26.65,144.06,143.98,10.6187]
[1724893027775,26.65,144.06,143.98,8.5066]
[1724893027975,0.05258294,144.03,144.01,0.05181848]
[1724893028683,0.05258294,144.03,144.01,3.52271848]
[1724893030177,0.05258294,144.03,144.02,3.4708]
[1724893031777,3.47,144.06,144.02,3.4708]
[1724893031978,3.47,144.06,144.02,14.1308]
[1724893032985,0.05009097,144.05,144.02,14.1308]
[1724893033286,0.05009097,144.05,144.03,3.4705]
[1724893033487,0.05009097,144.05,144.04,10.66]
[1724893034384,0.05009097,144.05,144.04,14.1303]
[1724893037593,0.05009097,144.05,144.04,10.66]
[1724893038393,3.4692,144.09,144.04,10.66]
[1724893038588,3.4692,144.09,144.05,10.66]
[1724893038890,10.66,144.12,144.05,10.66]
[1724893039193,3.469,144.1,144.05,14.1299]
[1724893039397,0.04717111,144.09,144.06,0.04389098]
[1724893040191,0.04717111,144.09,144.07,10.66]
[1724893040389,10.66,144.14,144.07,12.0226]
[1724893040591,10.66,144.14,144.07,15.4921]
[1724893040592,3.4687,144.12,144.07,15.4921]
[1724893041391,0.05254894,144.11,144.08,0.05036047]
[1724893042191,0.05254894,144.11,144.08,3.51966047]
[1724893042783,0.05254894,144.11,144.08,14.17966047]
[1724893043088,0.05254894,144.11,144.1,14.1289]
[1724893043293,3.55058781,144.16,144.1,14.1289]
[1724893043995,3.4678,144.15,144.1,14.1289]
[1724893044195,0.04744886,144.14,144.11,0.04542889]
[1724893044793,3.51534886,144.14,144.11,0.04542889]
[1724893047005,0.04744886,144.14,144.11,0.04542889]
[1724893047201,10.66,144.18,144.11,14.17402889]
[1724893047401,10.66,144.18,144.11,14.1286]
[1724893047701,10.66,144.17,144.1,14.1288]
[1724893047892,10.66,144.15,144.1,14.1288]
[1724893048092,0.04734967,144.14,144.11,0.05087306]
[1724893051899,0.04734967,144.14,144.11,3.51957306]
[1724893054601,3.51534967,144.14,144.11,3.51957306]
[1724893054795,0.04734967,144.14,144.11,3.51957306]
[1724893057303,0.04734967,144.14,144.11,0.05087306]
[1724893057700,3.51544967,144.14,144.11,0.05087306]
[1724893059299,3.51544967,144.14,144.11,3.51947306]